fUST/lending_fUST_20240502
["ID","MTS","AMOUNT","RATE_DAILY","PERIOD"]
[325230349,1714597846578,-217.44504434,0.00055616,120]
[325230350,1714597846589,-500.0,0.00055616,120]
[325230351,1714597846599,-586.11793028,0.00055616,120]
[325230352,1714597846609,-505.1,0.00055616,120]
[325230353,1714597846619,-500.0,0.00055616,120]
[325230354,1714597846629,-500.0,0.00055616,120]
[325230355,1714597846640,-500.0,0.00055616,120]
[325230356,1714597846651,-588.65,0.00055616,120]
[325230357,1714597846660,-500.0,0.00055616,120]
[325230358,1714597846672,-500.0,0.00055616,120]
[325230359,1714597846682,-500.0,0.00055616,120]
[325230360,1714597846691,-500.0,0.00055616,120]
[325230361,1714597846701,-500.0,0.00055616,120]
[325230362,1714597846711,-500.0,0.00055616,120]
[325230363,1714597846721,-500.0,0.00055616,120]
[325230364,1714597846731,-500.0,0.00055616,120]
[325230365,1714597846741,-500.0,0.00055616,120]
[325230366,1714597846750,-500.0,0.00055616,120]
[325230367,1714597846760,-500.0,0.00055616,120]
[325230368,1714597846770,-500.0,0.00055616,120]
[325230369,1714597846779,-500.0,0.00055616,120]
[325230370,1714597846790,-500.0,0.00055616,120]
[325230371,1714597846801,-500.0,0.00055616,120]
[325230372,1714597846811,-500.0,0.00055616,120]
[325230373,1714597846821,-500.0,0.00055616,120]
[325230374,1714597846830,-500.0,0.00055616,120]
[325230375,1714597846840,-500.0,0.00055616,120]
[325230376,1714597846851,-500.0,0.00055616,120]
[325230377,1714597846863,-500.0,0.00055616,120]
[325230378,1714597846873,-576.79,0.00055616,120]
[325230379,1714597846882,-577.84,0.00055616,120]
[325230380,1714597846892,-269.50612929,0.0005607,120]
[325230381,1714597846902,-736.97,0.00056164,120]
[325230382,1714597846911,-987.36,0.00056164,120]
[325230383,1714597846922,-683.19,0.00056164,120]
[325230384,1714597846932,-786.25,0.00056164,2]
[325230385,1714597846942,-651.76,0.00056164,120]
[325230386,1714597846952,-348.54,0.00056164,120]
[325230387,1714597846963,-7892.02,0.00056164,120]
[325230388,1714597846973,-500.0,0.00056164,120]
[325230389,1714597846983,-511.37,0.00056164,21]
[325230390,1714597846993,-1742.81,0.00056164,120]
[325230391,1714597847002,-500.0,0.00056164,120]
[325230392,1714597847014,-500.0,0.00056164,120]
[325230393,1714597847024,-241.16,0.00056164,120]
[325230394,1714597847035,-587.51,0.00056164,120]
[325230395,1714597847044,-500.0,0.00056164,120]
[325230396,1714597847054,-363.52127132,0.00056164,120]
[325230397,1714597847063,-500.0,0.00056164,120]
[325230398,1714597847072,-638.637039,0.00056164,2]
[325230399,1714597847081,-407.78413123,0.00056164,120]
[325230400,1714597847090,-500.0,0.00056164,120]
[325230401,1714597847099,-500.0,0.00056164,30]
[325230402,1714597847108,-500.0,0.00056164,120]
[325230403,1714597847118,-622.95841735,0.00056164,120]
[325230404,1714597847127,-500.0,0.00056164,120]
[325230405,1714597847137,-500.0,0.00056164,120]
[325230406,1714597847147,-500.0,0.00056164,120]
[325230407,1714597847157,-505.1,0.00056164,120]
[325230408,1714597847166,-500.0,0.00056164,120]
[325230409,1714597847176,-164.18919095,0.00056164,120]
[325230410,1714597847186,-500.0,0.00056164,120]
[325230411,1714597847195,-588.65,0.00056164,120]
[325230412,1714597847205,-327.53110617,0.00056164,120]
[325230413,1714597847214,-500.0,0.00056164,120]
[325230414,1714597847224,-500.0,0.00056164,120]
[325230415,1714597847233,-500.0,0.00056164,120]
[325230416,1714597847243,-500.0,0.00056164,120]
[325230417,1714597847252,-500.0,0.00056164,120]
[325230418,1714597847261,-500.0,0.00056164,120]
[325230419,1714597847271,-412.92910303,0.00056164,120]
[325230420,1714597847282,-500.0,0.00056164,120]
[325230421,1714597847295,-500.0,0.00056164,120]
[325230422,1714597847305,-500.0,0.00056164,120]
[325230423,1714597847320,-192.93230674,0.00056164,120]
[325230424,1714597847331,-500.0,0.00056164,120]
[325230425,1714597847340,-500.0,0.00056164,120]
[325230426,1714597847353,-500.0,0.00056164,120]
[325230427,1714597847366,-500.0,0.00056164,120]
[325230428,1714597847375,-500.0,0.00056164,120]
[325230429,1714597847385,-500.0,0.00056164,120]
[325230430,1714597847395,-500.0,0.00056164,120]
[325230431,1714597847405,-316.01685515,0.00056164,120]
[325230432,1714597847416,-500.0,0.00056164,120]
[325230433,1714597847427,-576.79,0.00056164,120]
[325230434,1714597847436,-577.84,0.00056164,120]
[325230435,1714597847446,-207.46959132,0.00056711,120]
[325230436,1714597847457,-500.0,0.00056711,120]
[325230437,1714597847467,-736.97,0.00056712,120]
[325230438,1714597847477,-987.36,0.00056712,120]
[325230439,1714597847487,-683.19,0.00056712,120]
[325230440,1714597847496,-786.25,0.00056712,2]
[325230441,1714597847506,-651.76,0.00056712,120]
[325230442,1714597847516,-7892.02,0.00056712,120]
[325230443,1714597847525,-406.58,0.00056712,120]
[325230444,1714597847535,-1742.81,0.00056712,120]
[325230445,1714597847544,-511.37,0.00056712,21]
[325230446,1714597847555,-500.0,0.00056712,120]
[325230447,1714597847564,-500.0,0.00056712,120]
[325230448,1714597847573,-587.51,0.00056712,120]
[325230449,1714597847583,-500.0,0.00056712,120]
[325230450,1714597847593,-500.0,0.00056712,120]
[325230451,1714597847603,-500.0,0.00056712,120]
[325230452,1714597847612,-500.0,0.00056712,30]
[325230453,1714597847622,-500.0,0.00056712,120]
[325230454,1714597847632,-462.6671524,0.00056712,120]
[325230455,1714597847641,-500.0,0.00056712,120]
[325230456,1714597847839,-643.32816474,0.00056712,120]
[325230457,1714597847851,-505.1,0.00056712,120]
[325230458,1714597847861,-500.0,0.00056712,120]
[325230459,1714597847871,-367.55462863,0.00056712,120]
[325230460,1714597847880,-588.65,0.00056712,120]
[325230461,1714597847889,-500.0,0.00056712,120]
[325230462,1714597847898,-500.0,0.00056712,120]
[325230463,1714597847907,-365.47320977,0.00056712,120]
[325230464,1714597847918,-629.35088512,0.00056712,120]
[325230465,1714597847927,-500.0,0.00056712,120]
[325230466,1714597847936,-500.0,0.00056712,120]
[325230467,1714597847945,-500.0,0.00056712,120]
[325230468,1714597847955,-500.0,0.00056712,120]
[325230469,1714597847964,-500.0,0.00056712,120]
[325230470,1714597847973,-500.0,0.00056712,120]
[325230471,1714597847982,-500.0,0.00056712,120]
[325230472,1714597847992,-500.0,0.00056712,120]
[325230473,1714597848001,-500.0,0.00056712,120]
[325230474,1714597848010,-500.0,0.00056712,120]
[325230476,1714597848019,-500.0,0.00056712,120]
[325230477,1714597848028,-500.0,0.00056712,120]
[325230478,1714597848037,-462.49223816,0.00056712,120]
[325230479,1714597848047,-576.79,0.00056712,120]
[325230480,1714597848056,-577.84,0.00056712,120]
[325230481,1714597848065,-151.0,0.00056795,120]
[325230482,1714597848074,-736.97,0.0005726,120]
[325230483,1714597848083,-987.36,0.0005726,120]
[325230484,1714597848092,-683.19,0.0005726,120]
[325230485,1714597848101,-786.25,0.0005726,2]
[325230486,1714597848111,-651.76,0.0005726,120]
[325230487,1714597848120,-7892.02,0.0005726,120]
[325230488,1714597848129,-1742.81,0.0005726,120]
[325230489,1714597848139,-511.37,0.0005726,21]
[325230490,1714597848149,-500.0,0.0005726,120]
[325230491,1714597848158,-500.0,0.0005726,120]
[325230492,1714597848169,-587.51,0.0005726,120]
[325230493,1714597848178,-500.0,0.0005726,120]
[325230494,1714597848187,-500.0,0.0005726,120]
[325230495,1714597848196,-500.0,0.0005726,30]
[325230496,1714597848205,-500.0,0.0005726,120]
[325230497,1714597848215,-500.0,0.0005726,120]
[325230498,1714597848224,-500.0,0.0005726,120]
[325230499,1714597848233,-505.1,0.0005726,120]
[325230500,1714597848243,-500.0,0.0005726,120]
[325230501,1714597848252,-588.65,0.0005726,120]
[325230502,1714597848262,-500.0,0.0005726,120]
[325230503,1714597848271,-500.0,0.0005726,120]
[325230504,1714597848286,-522.90985304,0.0005726,120]
[325230505,1714597848295,-500.0,0.0005726,120]
[325230506,1714597848305,-500.0,0.0005726,120]
[325230507,1714597848314,-500.0,0.0005726,120]
[325230508,1714597848326,-382.75805581,0.0005726,120]
[325230509,1714597848336,-500.0,0.0005726,120]
[325230510,1714597848345,-500.0,0.0005726,120]
[325230511,1714597848355,-303.15989382,0.0005726,120]
[325230512,1714597848365,-500.0,0.0005726,120]
[325230513,1714597848375,-500.0,0.0005726,120]
[325230514,1714597848385,-500.0,0.0005726,120]
[325230515,1714597848395,-500.0,0.0005726,120]
[325230516,1714597848404,-576.79,0.0005726,120]
[325230517,1714597848414,-577.84,0.0005726,120]
[325230518,1714597848426,-736.97,0.00057808,120]
[325230519,1714597848436,-987.36,0.00057808,120]
[325230520,1714597848445,-683.19,0.00057808,120]
[325230521,1714597848454,-786.25,0.00057808,2]
[325230522,1714597848464,-651.76,0.00057808,120]
[325230523,1714597848473,-7892.02,0.00057808,120]
[325230524,1714597848482,-1742.81,0.00057808,120]
[325230525,1714597848491,-511.37,0.00057808,21]
[325230526,1714597848501,-500.0,0.00057808,120]
[325230527,1714597848510,-500.0,0.00057808,120]
[325230528,1714597848520,-587.51,0.00057808,120]
[325230529,1714597848529,-500.0,0.00057808,120]
[325230530,1714597848538,-500.0,0.00057808,120]
[325230531,1714597848548,-500.0,0.00057808,30]
[325230532,1714597848557,-500.0,0.00057808,120]
[325230533,1714597848566,-500.0,0.00057808,120]
[325230534,1714597848576,-500.0,0.00057808,120]
[325230535,1714597848585,-505.1,0.00057808,120]
[325230536,1714597848594,-500.0,0.00057808,120]
[325230537,1714597848603,-588.65,0.00057808,120]
[325230538,1714597848612,-500.0,0.00057808,120]
[325230539,1714597848622,-500.0,0.00057808,120]
[325230540,1714597848631,-500.0,0.00057808,120]
[325230541,1714597848641,-500.0,0.00057808,120]
[325230542,1714597848650,-500.0,0.00057808,120]
[325230543,1714597848659,-620.94380992,0.00057808,120]
[325230544,1714597848669,-318.48126694,0.00057808,120]
[325230545,1714597848679,-500.0,0.00057808,120]
[325230546,1714597848689,-500.0,0.00057808,120]
[325230547,1714597848698,-500.0,0.00057808,120]
[325230548,1714597848707,-500.0,0.00057808,120]
[325230549,1714597848716,-576.79,0.00057808,120]
[325230550,1714597848726,-203.8574549,0.00057959,60]
[325230551,1714597848736,-203.8574549,0.00057959,60]
[325230552,1714597848745,-203.8574549,0.00057959,60]
[325230553,1714597848754,-203.8574549,0.00057959,60]
[325230554,1714597848762,-203.8574549,0.00057959,60]
[325230555,1714597848771,-203.8574549,0.00057959,60]
[325230556,1714597848781,-269.50612929,0.00058234,120]
[325230557,1714597848790,-500.0,0.00058355,120]
[325230558,1714597848798,-736.97,0.00058356,120]
[325230559,1714597848807,-987.36,0.00058356,120]
[325230560,1714597848817,-683.19,0.00058356,120]
[325230561,1714597848827,-786.25,0.00058356,2]
[325230562,1714597848836,-651.76,0.00058356,120]
[325230563,1714597848845,-7892.02,0.00058356,120]
[325230564,1714597848854,-1742.81,0.00058356,120]
[325230565,1714597848863,-511.37,0.00058356,21]
[325230566,1714597848872,-500.0,0.00058356,120]
[325230567,1714597848881,-618.85,0.00058356,120]
[325230568,1714597848890,-587.51,0.00058356,120]
[325230569,1714597848899,-368.5031219,0.00058356,120]
[325230570,1714597848908,-500.0,0.00058356,120]
[325230571,1714597848917,-500.0,0.00058356,30]
[325230572,1714597848928,-500.0,0.00058356,120]
[325230573,1714597848938,-498.67416264,0.00058356,120]
[325230574,1714597848947,-500.0,0.00058356,120]
[325230575,1714597848956,-505.1,0.00058356,120]
[325230576,1714597848965,-517.93409253,0.00058356,120]
[325230577,1714597848974,-588.65,0.00058356,120]
[325230578,1714597848983,-527.06658612,0.00058356,120]
[325230579,1714597848992,-500.0,0.00058356,120]
[325230580,1714597849002,-500.0,0.00058356,120]
[325230581,1714597849011,-500.0,0.00058356,120]
[325230582,1714597849020,-500.0,0.00058356,120]
[325230583,1714597849031,-206.33367532,0.00058356,120]
[325230584,1714597849040,-500.0,0.00058356,120]
[325230585,1714597849049,-500.0,0.00058356,120]
[325230586,1714597849058,-500.0,0.00058356,120]
[325230587,1714597849067,-576.79,0.00058356,120]
[325230588,1714597849077,-378.57667597,0.00058875,120]
[325230589,1714597849086,-736.97,0.00058904,120]
[325230590,1714597849095,-987.36,0.00058904,120]
[325230591,1714597849104,-683.19,0.00058904,120]
[325230592,1714597849113,-786.25,0.00058904,2]
[325230593,1714597849122,-651.76,0.00058904,120]
[325230594,1714597849131,-7892.02,0.00058904,120]
[325230595,1714597849141,-1742.81,0.00058904,120]
[325230596,1714597849150,-511.37,0.00058904,21]
[325230597,1714597849159,-500.0,0.00058904,120]
[325230598,1714597849169,-587.51,0.00058904,120]
[325230599,1714597849178,-500.0,0.00058904,120]
[325230600,1714597849187,-500.0,0.00058904,30]
[325230601,1714597849196,-500.0,0.00058904,120]
[325230602,1714597849205,-500.0,0.00058904,120]
[325230603,1714597849215,-505.1,0.00058904,120]
[325230604,1714597849224,-588.65,0.00058904,120]
[325230605,1714597849237,-500.0,0.00058904,120]
[325230606,1714597849247,-500.0,0.00058904,120]
[325230607,1714597849256,-500.0,0.00058904,120]
[325230608,1714597849264,-500.0,0.00058904,120]
[325230609,1714597849274,-500.0,0.00058904,120]
[325230610,1714597849283,-500.0,0.00058904,120]
[325230611,1714597849295,-500.0,0.00058904,120]
[325230612,1714597849304,-576.79,0.00058904,120]
[325230613,1714597849313,-750.0,0.00059034,2]
[325230614,1714597849322,-151.0,0.00059151,120]
[325230615,1714597849332,-736.97,0.00059452,120]
[325230616,1714597849342,-987.36,0.00059452,120]
[325230617,1714597849351,-683.19,0.00059452,120]
[325230618,1714597849361,-786.25,0.00059452,2]
[325230619,1714597849370,-651.76,0.00059452,120]
[325230620,1714597849380,-7892.02,0.00059452,120]
[325230621,1714597849390,-1742.81,0.00059452,120]
[325230622,1714597849399,-511.37,0.00059452,21]
[325230623,1714597849408,-500.0,0.00059452,120]
[325230624,1714597849419,-587.51,0.00059452,120]
[325230625,1714597849428,-500.0,0.00059452,120]
[325230626,1714597849437,-500.0,0.00059452,30]
[325230627,1714597849446,-374.02512581,0.00059452,120]
[325230628,1714597849456,-500.0,0.00059452,120]
[325230629,1714597849466,-505.1,0.00059452,120]
[325230630,1714597849475,-588.65,0.00059452,120]
[325230631,1714597849484,-500.0,0.00059452,120]
[325230632,1714597849493,-500.0,0.00059452,120]
[325230633,1714597849502,-500.0,0.00059452,120]
[325230634,1714597849511,-500.0,0.00059452,120]
[325230635,1714597849520,-507.23832668,0.00059452,120]
[325230636,1714597849530,-500.0,0.00059452,120]
[325230637,1714597849540,-263.77178401,0.00059452,120]
[325230638,1714597849549,-576.79,0.00059452,120]
[325230639,1714597849559,-327.783939,0.00059453,30]
[325230640,1714597849568,-3725.475953,0.00059453,30]
[325230641,1714597849578,-167.454887,0.00059453,30]
[325230642,1714597849587,-491.67591,0.00059453,30]
[325230643,1714597849596,-154.8510483,0.00059635,120]
[325230644,1714597849606,-500.0,0.00059998,120]
[325230645,1714597849617,-736.97,0.00059999,120]
[325230646,1714597849626,-987.36,0.00059999,120]
[325230647,1714597849637,-683.19,0.00059999,120]
[325230648,1714597849648,-786.25,0.00059999,2]
[325230649,1714597849658,-651.76,0.00059999,120]
[325230650,1714597849668,-7892.02,0.00059999,120]
[325230651,1714597849678,-1742.81,0.00059999,120]
[325230652,1714597849687,-511.37,0.00059999,21]
[325230653,1714597849697,-500.0,0.00059999,120]
[325230654,1714597849706,-587.51,0.00059999,120]
[325230655,1714597849716,-373.87,0.00059999,120]
[325230656,1714597849725,-500.0,0.00059999,30]
[325230657,1714597849734,-500.0,0.00059999,120]
[325230658,1714597849744,-505.1,0.00059999,120]
[325230659,1714597849754,-588.65,0.00059999,120]
[325230660,1714597849762,-500.0,0.00059999,120]
[325230661,1714597849771,-500.0,0.00059999,120]
[325230662,1714597849780,-500.0,0.00059999,120]
[325230663,1714597849789,-500.0,0.00059999,120]
[325230664,1714597849798,-500.0,0.00059999,120]
[325230665,1714597849807,-576.79,0.00059999,120]
[325230666,1714597849817,-481.39,0.0006,30]
[325230667,1714597849827,-327.783939,0.00060196,30]
[325230668,1714597849837,-3725.475953,0.00060196,30]
[325230669,1714597849848,-491.67591,0.00060196,30]
[325230670,1714597849859,-736.97,0.00060547,120]
[325230671,1714597849868,-987.36,0.00060547,120]
[325230672,1714597849877,-683.19,0.00060547,120]
[325230673,1714597849886,-786.25,0.00060547,2]
[325230674,1714597849895,-651.76,0.00060547,120]
[325230675,1714597849904,-7892.02,0.00060547,120]
[325230676,1714597849913,-1742.81,0.00060547,120]
[325230677,1714597849922,-511.37,0.00060547,21]
[325230678,1714597849931,-500.0,0.00060547,120]
[325230679,1714597849940,-587.51,0.00060547,120]
[325230680,1714597849949,-179.48417153,0.00060547,30]
[325230681,1714597849958,-613.59642529,0.00060547,120]
[325230682,1714597849967,-505.1,0.00060547,120]
[325230683,1714597849978,-588.65,0.00060547,120]
[325230684,1714597849988,-500.0,0.00060547,120]
[325230685,1714597849997,-500.0,0.00060547,120]
[325230686,1714597850007,-500.0,0.00060547,120]
[325230687,1714597850016,-500.0,0.00060547,120]
[325230688,1714597850025,-500.0,0.00060547,120]
[325230689,1714597850034,-576.79,0.00060547,120]
[325230690,1714597850043,-327.783939,0.00060939,30]
[325230691,1714597850052,-3725.475953,0.00060939,30]
[325230692,1714597850061,-491.67591,0.00060939,30]
[325230693,1714597850070,-1620.0,0.00061,30]
[325230694,1714597850079,-736.97,0.00061095,120]
[325230695,1714597850088,-987.36,0.00061095,120]
[325230696,1714597850097,-683.19,0.00061095,120]
[325230697,1714597850106,-786.25,0.00061095,2]
[325230698,1714597850115,-293.56045697,0.00061095,120]
[325230699,1714597850182,-358.19954303,0.00061095,120]
[325230700,1714597850191,-580.05045697,0.00061095,120]
[325230701,1714597851396,-190.99130353,0.00052876,20]
[325230702,1714597851406,-500.0,0.00052876,120]
[325230703,1714597851415,-500.0,0.00052876,120]
[325230704,1714597851425,-500.0,0.00052876,120]
[325230705,1714597851435,-500.0,0.00052876,120]
[325230706,1714597851445,-500.0,0.00053424,120]
[325230707,1714597851454,-500.0,0.00053424,120]
[325230708,1714597851464,-500.0,0.00053424,120]
[325230709,1714597851474,-500.0,0.00053972,120]
[325230710,1714597851483,-500.0,0.00053972,120]
[325230711,1714597851492,-500.0,0.00053972,120]
[325230712,1714597851502,-500.0,0.0005452,120]
[325230713,1714597851512,-500.0,0.00055068,120]
[325230714,1714597851521,-500.0,0.00055616,120]
[325230715,1714597851531,-577.84,0.00057808,120]
[325230716,1714597851542,-577.84,0.00058356,120]
[325230717,1714597851551,-577.84,0.00058904,120]
[325230718,1714597851561,-577.84,0.00059452,120]
[325230719,1714597851571,-577.84,0.00059999,120]
[325230720,1714597851580,-577.84,0.00060547,120]
[325230721,1714597851590,-7311.96954303,0.00061095,120]
[325230722,1714597851600,-1742.81,0.00061095,120]
[325230723,1714597851609,-511.37,0.00061095,21]
[325230724,1714597851618,-500.0,0.00061095,120]
[325230725,1714597851628,-587.51,0.00061095,120]
[325230726,1714597851639,-505.1,0.00061095,120]
[325230727,1714597851649,-588.65,0.00061095,120]
[325230728,1714597851659,-355.20578544,0.00061095,120]
[325230729,1714597851670,-500.0,0.00061095,120]
[325230730,1714597851680,-500.0,0.00061095,120]
[325230731,1714597851689,-500.0,0.00061095,120]
[325230732,1714597851700,-500.0,0.00061095,120]
[325230733,1714597851710,-576.79,0.00061095,120]
[325230734,1714597851719,-577.84,0.00061095,120]
[325230735,1714597851729,-500.0,0.00061642,120]
[325230736,1714597851739,-736.97,0.00061643,120]
[325230737,1714597851748,-987.36,0.00061643,120]
[325230738,1714597851758,-683.19,0.00061643,120]
[325230739,1714597851886,-786.25,0.00061643,2]
[325230740,1714597851897,-651.76,0.00061643,120]
[325230741,1714597851907,-7892.02,0.00061643,120]
[325230742,1714597851916,-1742.81,0.00061643,120]
[325230743,1714597851926,-511.37,0.00061643,21]
[325230744,1714597851936,-500.0,0.00061643,120]
[325230745,1714597851946,-587.51,0.00061643,120]
[325230746,1714597851956,-505.1,0.00061643,120]
[325230747,1714597851966,-588.65,0.00061643,120]
[325230748,1714597851976,-500.0,0.00061643,120]
[325230749,1714597851985,-565.37,0.00061643,120]
[325230750,1714597851995,-580.1,0.00061643,120]
[325230751,1714597852004,-500.0,0.00061643,120]
[325230752,1714597852014,-576.79,0.00061643,120]
[325230753,1714597852024,-577.84,0.00061643,120]
[325230754,1714597852033,-327.783939,0.00061682,30]
[325230755,1714597852043,-3725.475953,0.00061682,30]
[325230756,1714597852052,-491.67591,0.00061682,30]
[325230757,1714597852062,-154.8510483,0.00061773,120]
[325230758,1714597852072,-736.97,0.00062191,120]
[325230759,1714597852082,-987.36,0.00062191,120]
[325230760,1714597852093,-683.19,0.00062191,120]
[325230761,1714597852102,-786.25,0.00062191,2]
[325230762,1714597852111,-651.76,0.00062191,120]
[325230763,1714597852121,-146.13109965,0.00062191,120]
[325230767,1714598455760,379.53531224,9.999e-05,2]
[325230794,1714598666544,-154.84515485,0.00020911,14]
[325230795,1714598666570,-153.32315408,0.00038415,7]
[325230796,1714598666592,-151.0,0.00045,120]
[325230797,1714598666618,-151.0,0.00048,120]
[325230798,1714598666642,-1000.0,0.00049436,30]
[325230799,1714598666664,-960.60835228,0.0005,60]
[325230800,1714598666688,-151.0,0.00050986,120]
[325230801,1714598666712,-500.0,0.00052875,120]
[325230802,1714598666734,-308.54558396,0.00052876,120]
[325230803,1714598666756,-500.0,0.00052876,120]
[325230804,1714598666780,-500.0,0.00052876,120]
[325230805,1714598666801,-263.34115644,0.00052876,120]
[325230806,1714598666827,-500.0,0.00052876,120]
[325230807,1714598666849,-500.0,0.00052876,120]
[325230808,1714598666871,-500.0,0.00052876,120]
[325230809,1714598666893,-500.0,0.00052876,120]
[325230810,1714598666915,-241.05772642,0.00052876,120]
[325230811,1714598666938,-500.0,0.00052876,120]
[325230812,1714598666960,-500.0,0.00052876,120]
[325230813,1714598666984,-500.0,0.00052876,120]
[325230814,1714598667007,-500.0,0.00052876,120]
[325230815,1714598667029,-500.0,0.00052876,120]
[325230816,1714598667051,-500.0,0.00052876,60]
[325230817,1714598667076,-326.5466235,0.00052876,120]
[325230818,1714598667099,-500.0,0.00052876,120]
[325230819,1714598667121,-500.0,0.00052876,120]
[325230820,1714598667142,-500.0,0.00052876,120]
[325230821,1714598667163,-500.0,0.00052876,120]
[325230822,1714598667185,-500.0,0.00052876,120]
[325230823,1714598667207,-500.0,0.00052876,120]
[325230824,1714598667228,-450.45643041,0.00052876,120]
[325230825,1714598667250,-500.0,0.00052876,120]
[325230826,1714598667273,-500.0,0.00052876,120]
[325230827,1714598667295,-500.0,0.00052876,120]
[325230828,1714598667318,-500.0,0.00052876,120]
[325230829,1714598667340,-500.0,0.00052876,120]
[325230830,1714598667361,-500.0,0.00052876,120]
[325230831,1714598667383,-500.0,0.00052876,120]
[325230832,1714598667408,-500.0,0.00052876,120]
[325230833,1714598667431,-500.0,0.00052876,120]
[325230834,1714598667452,-500.0,0.00052876,120]
[325230835,1714598667474,-500.0,0.00052876,120]
[325230836,1714598667496,-500.0,0.00052876,120]
[325230837,1714598667521,-500.0,0.00052876,120]
[325230838,1714598667545,-500.0,0.00052876,120]
[325230839,1714598667571,-500.0,0.00052876,120]
[325230840,1714598667594,-500.0,0.00052876,120]
[325230841,1714598667618,-500.0,0.00052876,120]
[325230842,1714598667771,-500.0,0.00052876,120]
[325230843,1714598667794,-500.0,0.00052876,120]
[325230844,1714598667819,-500.0,0.00052876,120]
[325230845,1714598667843,-500.0,0.00052876,120]
[325230846,1714598667866,-500.0,0.00052876,120]
[325230847,1714598667888,-500.0,0.00052876,120]
[325230848,1714598667910,-500.0,0.00052876,120]
[325230849,1714598667931,-500.0,0.00052876,120]
[325230850,1714598667953,-500.0,0.00052876,120]
[325230851,1714598667975,-500.0,0.00052876,120]
[325230852,1714598667999,-500.0,0.00052876,120]
[325230853,1714598668022,-500.0,0.00052876,120]
[325230854,1714598668046,-500.0,0.00052876,120]
[325230855,1714598668071,-500.0,0.00052876,120]
[325230856,1714598668094,-500.0,0.00052876,120]
[325230857,1714598668119,-500.0,0.00052876,120]
[325230858,1714598668143,-500.0,0.00052876,120]
[325230859,1714598668167,-500.0,0.00052876,120]
[325230860,1714598668190,-239.75814575,0.00052876,120]
[325230861,1714598668213,-500.0,0.00052876,120]
[325230862,1714598668238,-500.0,0.00052876,120]
[325230863,1714598668262,-500.0,0.00052876,120]
[325230864,1714598668285,-500.0,0.00052876,120]
[325230865,1714598668310,-500.0,0.00052876,120]
[325230866,1714598668335,-500.0,0.00052876,120]
[325230867,1714598668358,-500.0,0.00052876,120]
[325230868,1714598668381,-500.0,0.00052876,120]
[325230869,1714598668403,-500.0,0.00052876,120]
[325230870,1714598668426,-500.0,0.00052876,120]
[325230871,1714598668450,-500.0,0.00052876,120]
[325230872,1714598668473,-330.96884168,0.00052876,120]
[325230873,1714598668497,-500.0,0.00052876,120]
[325230874,1714598668520,-500.0,0.00052876,120]
[325230875,1714598668545,-500.0,0.00052876,120]
[325230876,1714598668568,-551.81231136,0.00052876,120]
[325230877,1714598668590,-500.0,0.00052876,120]
[325230878,1714598668614,-500.0,0.00052876,120]